[Event "Titled Tuesday Blitz October 31 Early 2023"]
[White "Hon, Eric"]
[Black "Estrada Nieto, Julian"]
[WhiteFideId "2097117"]
[BlackFideId "5101018"]
[WhiteElo "2254"]
[BlackElo "2515"]
[Result "0-1"]
[Round "2"]
[TimeControl "180+1"]
[Date "2023.10.31"]
[WhiteClock "0:01:10"]
[BlackClock "0:01:02"]
[Board "153"]

1. e4 {[%clk 0:02:50]}  e5 {[%clk 0:02:59]} 2. Nf3 {[%clk 0:02:50]}  Nc6 {[%clk 0:02:59]} 3. Bc4 {[%clk 0:02:50]}  Bc5 {[%clk 0:02:58]} 4. c3 {[%clk 0:02:50]}  Nf6 {[%clk 0:02:55]} 5. d3 {[%clk 0:02:50]}  d6 {[%clk 0:02:55]} 6. Nbd2 {[%clk 0:02:50]}  a6 {[%clk 0:02:55]} 7. h3 {[%clk 0:02:50]}  Ba7 {[%clk 0:02:55]} 8. Nf1 {[%clk 0:02:50]}  h6 {[%clk 0:02:53]} 9. Bb3 {[%clk 0:02:50]}  Be6 {[%clk 0:02:50]} 10. Be3 {[%clk 0:02:50]}  Qd7 {[%clk 0:02:44]} 11. Qe2 {[%clk 0:02:49]}  O-O-O {[%clk 0:02:34]} 12. Bxa7 {[%clk 0:02:48]}  Nxa7 {[%clk 0:02:34]} 13. Ne3 {[%clk 0:02:48]}  Nc6 {[%clk 0:02:31]} 14. Nd5 {[%clk 0:02:45]}  Bxd5 {[%clk 0:02:28]} 15. exd5 {[%clk 0:02:45]}  Ne7 {[%clk 0:02:28]} 16. c4 {[%clk 0:02:45]}  Rhe8 {[%clk 0:02:13]} 17. O-O-O {[%clk 0:02:39]}  Nf5 {[%clk 0:02:11]} 18. g4 {[%clk 0:02:38]}  Nd4 {[%clk 0:02:11]} 19. Nxd4 {[%clk 0:02:38]}  exd4 {[%clk 0:02:12]} 20. Qf3 {[%clk 0:02:36]}  c5 {[%clk 0:01:55]} 21. dxc6 {[%clk 0:02:34]}  Qxc6 {[%clk 0:01:55]} 22. Qxc6+ {[%clk 0:02:05]}  bxc6 {[%clk 0:01:55]} 23. Rde1 {[%clk 0:02:05]}  g5 {[%clk 0:01:46]} 24. c5 {[%clk 0:01:53]}  d5 {[%clk 0:01:38]} 25. Ba4 {[%clk 0:01:45]}  Kc7 {[%clk 0:01:37]} 26. Kd2 {[%clk 0:01:43]}  Nd7 {[%clk 0:01:37]} 27. b4 {[%clk 0:01:44]}  a5 {[%clk 0:01:19]} 28. a3 {[%clk 0:01:35]}  axb4 {[%clk 0:01:16]} 29. axb4 {[%clk 0:01:35]}  Ne5 {[%clk 0:01:15]} 30. Kd1 {[%clk 0:01:19]}  Ra8 {[%clk 0:01:13]} 31. Bb3 {[%clk 0:01:10]}  Nxd3 {[%clk 0:01:02]} 0-1


[Site "https://www.chess.com"]

[Event "Titled Tuesday Blitz October 31 Early 2023"]
[White "De Souza, Cristiano Gomes"]
[Black "Lehtosaari, Mauri"]
[WhiteFideId "2151758"]
[BlackFideId "501999"]
[WhiteElo "2249"]
[BlackElo "2511"]
[Result "0-1"]
[Round "2"]
[TimeControl "180+1"]
[Date "2023.10.31"]
[WhiteClock "0:00:14"]
[BlackClock "0:00:23"]
[Board "155"]

1. d4 {[%clk 0:03:00]}  d5 {[%clk 0:02:57]} 2. c4 {[%clk 0:03:00]}  c6 {[%clk 0:02:55]} 3. Nf3 {[%clk 0:03:00]}  Nf6 {[%clk 0:02:56]} 4. Nc3 {[%clk 0:02:59]}  dxc4 {[%clk 0:02:49]} 5. a4 {[%clk 0:02:58]}  Bf5 {[%clk 0:02:49]} 6. Ne5 {[%clk 0:02:57]}  Nbd7 {[%clk 0:02:47]} 7. Nxc4 {[%clk 0:02:57]}  Nb6 {[%clk 0:02:46]} 8. Ne5 {[%clk 0:02:55]}  a5 {[%clk 0:02:47]} 9. f3 {[%clk 0:02:55]}  Nfd7 {[%clk 0:02:35]} 10. e4 {[%clk 0:02:52]}  Nxe5 {[%clk 0:02:33]} 11. exf5 {[%clk 0:02:47]}  Ned7 {[%clk 0:02:29]} 12. Be3 {[%clk 0:02:42]}  Nf6 {[%clk 0:02:27]} 13. Be2 {[%clk 0:02:39]}  Nfd5 {[%clk 0:02:22]} 14. Bf2 {[%clk 0:02:34]}  g6 {[%clk 0:02:18]} 15. fxg6 {[%clk 0:02:27]}  hxg6 {[%clk 0:02:19]} 16. O-O {[%clk 0:02:26]}  Bg7 {[%clk 0:02:18]} 17. Ne4 {[%clk 0:02:24]}  Nf4 {[%clk 0:02:04]} 18. Re1 {[%clk 0:01:37]}  Nxe2+ {[%clk 0:01:55]} 19. Rxe2 {[%clk 0:01:36]}  Nd5 {[%clk 0:01:50]} 20. g3 {[%clk 0:01:29]}  O-O {[%clk 0:01:49]} 21. Nc5 {[%clk 0:01:23]}  b6 {[%clk 0:01:46]} 22. Nd3 {[%clk 0:01:22]}  Rc8 {[%clk 0:01:43]} 23. Rc1 {[%clk 0:01:22]}  e6 {[%clk 0:01:41]} 24. Ne5 {[%clk 0:01:21]}  Nb4 {[%clk 0:01:35]} 25. f4 {[%clk 0:01:15]}  Qd5 {[%clk 0:01:32]} 26. Rd2 {[%clk 0:01:02]}  Rfd8 {[%clk 0:01:31]} 27. Qe2 {[%clk 0:00:49]}  b5 {[%clk 0:01:23]} 28. axb5 {[%clk 0:00:48]}  cxb5 {[%clk 0:01:24]} 29. Re1 {[%clk 0:00:32]}  a4 {[%clk 0:01:09]} 30. Qf3 {[%clk 0:00:27]}  Qxf3 {[%clk 0:01:06]} 31. Nxf3 {[%clk 0:00:25]}  Nd5 {[%clk 0:01:01]} 32. Ne5 {[%clk 0:00:24]}  Bf8 {[%clk 0:00:57]} 33. Nd3 {[%clk 0:00:23]}  b4 {[%clk 0:00:55]} 34. Nc5 {[%clk 0:00:23]}  Bxc5 {[%clk 0:00:49]} 35. dxc5 {[%clk 0:00:23]}  Rc6 {[%clk 0:00:41]} 36. Red1 {[%clk 0:00:23]}  Ra8 {[%clk 0:00:39]} 37. Kg2 {[%clk 0:00:23]}  a3 {[%clk 0:00:40]} 38. bxa3 {[%clk 0:00:23]}  bxa3 {[%clk 0:00:41]} 39. Ra1 {[%clk 0:00:23]}  Nc3 {[%clk 0:00:38]} 40. Rc2 {[%clk 0:00:23]}  Ne4 {[%clk 0:00:38]} 41. Rca2 {[%clk 0:00:22]}  Rca6 {[%clk 0:00:36]} 42. Bd4 {[%clk 0:00:22]}  Kf8 {[%clk 0:00:32]} 43. Kf3 {[%clk 0:00:22]}  f5 {[%clk 0:00:30]} 44. g4 {[%clk 0:00:20]}  Ke7 {[%clk 0:00:29]} 45. gxf5 {[%clk 0:00:21]}  exf5 {[%clk 0:00:30]} 46. Rg2 {[%clk 0:00:19]}  Kd7 {[%clk 0:00:28]} 47. Rgg1 {[%clk 0:00:19]}  Nd2+ {[%clk 0:00:27]} 48. Ke3 {[%clk 0:00:18]}  Nb3 {[%clk 0:00:26]} 49. Ra2 {[%clk 0:00:18]}  Kc6 {[%clk 0:00:26]} 50. Rb1 {[%clk 0:00:18]}  Re8+ {[%clk 0:00:25]} 51. Kd3 {[%clk 0:00:17]}  Nxd4 {[%clk 0:00:25]} 52. Kxd4 {[%clk 0:00:18]}  Re4+ {[%clk 0:00:25]} 53. Kd3 {[%clk 0:00:17]}  Rxf4 {[%clk 0:00:26]} 54. Rb3 {[%clk 0:00:17]}  Rh4 {[%clk 0:00:25]} 55. Kc2 {[%clk 0:00:16]}  Kxc5 {[%clk 0:00:24]} 56. Kb1 {[%clk 0:00:17]}  Rb4 {[%clk 0:00:23]} 57. Rxb4 {[%clk 0:00:17]}  Kxb4 {[%clk 0:00:24]} 58. Kc2 {[%clk 0:00:17]}  Rc6+ {[%clk 0:00:23]} 59. Kd2 {[%clk 0:00:14]}  Kb3 {[%clk 0:00:23]} 0-1


[Site "https://www.chess.com"]

[Event "Titled Tuesday Blitz October 31 Early 2023"]
[White "Reprintsev, Alexander"]
[Black "Dodaro, Mattia"]
[WhiteFideId "14100541"]
[BlackFideId "28583400"]
[WhiteElo "2511"]
[BlackElo "2249"]
[Result "1-0"]
[Round "2"]
[TimeControl "180+1"]
[Date "2023.10.31"]
[WhiteClock "0:01:46"]
[BlackClock "0:00:16"]
[Board "156"]

1. e4 {[%clk 0:02:56]}  g6 {[%clk 0:02:57]} 2. d4 {[%clk 0:02:56]}  Bg7 {[%clk 0:02:58]} 3. Nc3 {[%clk 0:02:56]}  d6 {[%clk 0:02:58]} 4. h4 {[%clk 0:02:56]}  h5 {[%clk 0:02:58]} 5. Nf3 {[%clk 0:02:53]}  a6 {[%clk 0:02:58]} 6. Ng5 {[%clk 0:02:52]}  b5 {[%clk 0:02:55]} 7. a4 {[%clk 0:02:51]}  b4 {[%clk 0:02:55]} 8. Ne2 {[%clk 0:02:51]}  Nf6 {[%clk 0:02:54]} 9. f3 {[%clk 0:02:51]}  O-O {[%clk 0:02:53]} 10. Be3 {[%clk 0:02:48]}  Nbd7 {[%clk 0:02:39]} 11. Qd2 {[%clk 0:02:46]}  c5 {[%clk 0:02:36]} 12. g3 {[%clk 0:02:44]}  Nb6 {[%clk 0:02:34]} 13. b3 {[%clk 0:02:43]}  Qc7 {[%clk 0:02:31]} 14. Bg2 {[%clk 0:02:42]}  Bb7 {[%clk 0:02:30]} 15. O-O {[%clk 0:02:40]}  a5 {[%clk 0:02:26]} 16. Rf2 {[%clk 0:02:38]}  c4 {[%clk 0:02:24]} 17. d5 {[%clk 0:02:33]}  Nfxd5 {[%clk 0:02:05]} 18. Raf1 {[%clk 0:02:25]}  Nxe3 {[%clk 0:02:03]} 19. Qxe3 {[%clk 0:02:25]}  cxb3 {[%clk 0:02:03]} 20. cxb3 {[%clk 0:02:25]}  Ba6 {[%clk 0:02:02]} 21. Rc1 {[%clk 0:02:23]}  Qb7 {[%clk 0:01:48]} 22. Nf4 {[%clk 0:02:23]}  Rac8 {[%clk 0:01:43]} 23. Rfc2 {[%clk 0:02:23]}  Rc3 {[%clk 0:01:37]} 24. Rxc3 {[%clk 0:02:15]}  bxc3 {[%clk 0:01:37]} 25. g4 {[%clk 0:02:09]}  hxg4 {[%clk 0:01:18]} 26. fxg4 {[%clk 0:02:08]}  Nd7 {[%clk 0:01:15]} 27. h5 {[%clk 0:02:05]}  Qb4 {[%clk 0:01:07]} 28. Kh1 {[%clk 0:01:59]}  Qxb3 {[%clk 0:01:07]} 29. hxg6 {[%clk 0:01:59]}  fxg6 {[%clk 0:01:07]} 30. Nxg6 {[%clk 0:01:55]}  Rb8 {[%clk 0:00:46]} 31. Qh3 {[%clk 0:01:55]}  Nf6 {[%clk 0:00:42]} 32. e5 {[%clk 0:01:53]}  Qb2 {[%clk 0:00:38]} 33. Bd5+ {[%clk 0:01:50]}  Nxd5 {[%clk 0:00:16]} 34. Qh7# {[%clk 0:01:46]} 1-0


[Site "https://www.chess.com"]

[Event "Titled Tuesday Blitz October 31 Early 2023"]
[White "Aash20"]
[Black "Ruge, Edison"]
[BlackFideId "4401000"]
[WhiteElo "2507"]
[BlackElo "2243"]
[Result "1-0"]
[Round "2"]
[TimeControl "180+1"]
[Date "2023.10.31"]
[WhiteClock "0:01:59"]
[BlackClock "0:00:00"]
[Board "158"]

1. e4 {[%clk 0:02:59]}  e5 {[%clk 0:02:59]} 2. Nf3 {[%clk 0:02:59]}  Nc6 {[%clk 0:03:00]} 3. Bc4 {[%clk 0:02:59]}  Be7 {[%clk 0:03:00]} 4. O-O {[%clk 0:02:58]}  Nf6 {[%clk 0:03:00]} 5. Re1 {[%clk 0:02:55]}  d6 {[%clk 0:03:01]} 6. d4 {[%clk 0:02:55]}  O-O {[%clk 0:03:01]} 7. dxe5 {[%clk 0:02:55]}  dxe5 {[%clk 0:02:55]} 8. Qxd8 {[%clk 0:02:54]}  Bxd8 {[%clk 0:02:55]} 9. Nc3 {[%clk 0:02:53]}  Bg4 {[%clk 0:02:54]} 10. Be3 {[%clk 0:02:52]}  Bxf3 {[%clk 0:02:52]} 11. gxf3 {[%clk 0:02:51]}  Nd4 {[%clk 0:02:53]} 12. Bxd4 {[%clk 0:02:50]}  exd4 {[%clk 0:02:52]} 13. Ne2 {[%clk 0:02:51]}  c5 {[%clk 0:02:50]} 14. c3 {[%clk 0:02:49]}  Rc8 {[%clk 0:02:42]} 15. cxd4 {[%clk 0:02:46]}  cxd4 {[%clk 0:02:32]} 16. b3 {[%clk 0:02:46]}  Bb6 {[%clk 0:02:29]} 17. Rad1 {[%clk 0:02:45]}  Rfd8 {[%clk 0:02:29]} 18. Rd3 {[%clk 0:02:42]}  Nd7 {[%clk 0:02:22]} 19. f4 {[%clk 0:02:42]}  Nc5 {[%clk 0:02:22]} 20. Rxd4 {[%clk 0:02:41]}  Rxd4 {[%clk 0:02:20]} 21. Nxd4 {[%clk 0:02:42]}  Nd3 {[%clk 0:02:17]} 22. Rd1 {[%clk 0:02:32]}  Nb2 {[%clk 0:02:13]} 23. Rd2 {[%clk 0:02:29]}  Nxc4 {[%clk 0:02:10]} 24. bxc4 {[%clk 0:02:29]}  Rxc4 {[%clk 0:02:10]} 25. Ne2 {[%clk 0:02:22]}  Rxe4 {[%clk 0:02:02]} 26. Kg2 {[%clk 0:02:22]}  h5 {[%clk 0:01:45]} 27. Kf3 {[%clk 0:02:21]}  Ra4 {[%clk 0:01:44]} 28. Rc2 {[%clk 0:02:19]}  Ra3+ {[%clk 0:01:43]} 29. Ke4 {[%clk 0:02:18]}  g6 {[%clk 0:01:43]} 30. Nc3 {[%clk 0:02:16]}  Bxf2 {[%clk 0:01:34]} 31. Nd5 {[%clk 0:02:16]}  Ra4+ {[%clk 0:01:32]} 32. Kf3 {[%clk 0:02:13]}  Bd4 {[%clk 0:01:31]} 33. h4 {[%clk 0:02:10]}  Kg7 {[%clk 0:01:29]} 34. Rc7 {[%clk 0:02:07]}  Rxa2 {[%clk 0:01:27]} 35. Rxb7 {[%clk 0:02:07]}  Ra3+ {[%clk 0:01:18]} 36. Ke4 {[%clk 0:02:06]}  Bc5 {[%clk 0:01:18]} 37. Nc7 {[%clk 0:02:06]}  Re3+ {[%clk 0:01:15]} 38. Kd5 {[%clk 0:02:05]}  Bb6 {[%clk 0:01:15]} 39. Nb5 {[%clk 0:02:01]}  Kf6 {[%clk 0:01:09]} 40. Nd6 {[%clk 0:02:00]}  Rd3+ {[%clk 0:01:06]} 41. Kc6 {[%clk 0:02:00]}  Rc3+ {[%clk 0:01:03]} 42. Kd5 {[%clk 0:01:59]}  Rc5+ {[%clk 0:00:56]} 43. Ke4 {[%clk 0:01:59]}  Rc7 {[%clk 0:00:54]} 44. Ne8+ {[%clk 0:01:58]}  Ke6 {[%clk 0:00:52]} 45. Nxc7+ {[%clk 0:01:59]}  Bxc7 {[%clk 0:00:00]} 46. Rxc7 {[%clk 0:01:59]} 1-0


[Site "https://www.chess.com"]

[Event "Titled Tuesday Blitz October 31 Early 2023"]
[White "Cueto, Jonny"]
[Black "Alinasab, Mobina"]
[WhiteFideId "3300145"]
[BlackFideId "12528897"]
[WhiteElo "2242"]
[BlackElo "2507"]
[Result "0-1"]
[Round "2"]
[TimeControl "180+1"]
[Date "2023.10.31"]
[WhiteClock "0:01:12"]
[BlackClock "0:01:10"]
[Board "159"]

1. d4 {[%clk 0:03:00]}  Nf6 {[%clk 0:02:58]} 2. Bf4 {[%clk 0:02:55]}  e6 {[%clk 0:01:30]} 3. e3 {[%clk 0:02:55]}  b6 {[%clk 0:01:29]} 4. Nf3 {[%clk 0:02:55]}  Bb7 {[%clk 0:01:29]} 5. h3 {[%clk 0:02:56]}  Be7 {[%clk 0:01:29]} 6. Nbd2 {[%clk 0:02:56]}  O-O {[%clk 0:01:30]} 7. c4 {[%clk 0:02:56]}  c5 {[%clk 0:01:30]} 8. Bd3 {[%clk 0:02:55]}  cxd4 {[%clk 0:01:30]} 9. exd4 {[%clk 0:02:56]}  d5 {[%clk 0:01:31]} 10. b3 {[%clk 0:02:42]}  Nc6 {[%clk 0:01:29]} 11. O-O {[%clk 0:02:42]}  dxc4 {[%clk 0:01:28]} 12. Nxc4 {[%clk 0:02:37]}  Nb4 {[%clk 0:01:25]} 13. Bb1 {[%clk 0:02:34]}  Nbd5 {[%clk 0:01:24]} 14. Bg3 {[%clk 0:02:29]}  Nc3 {[%clk 0:01:23]} 15. Qd3 {[%clk 0:02:04]}  Nxb1 {[%clk 0:01:22]} 16. Raxb1 {[%clk 0:02:05]}  Be4 {[%clk 0:01:22]} 17. Qe3 {[%clk 0:02:02]}  Bxb1 {[%clk 0:01:22]} 18. Rxb1 {[%clk 0:02:03]}  Rc8 {[%clk 0:01:22]} 19. Be5 {[%clk 0:02:00]}  Nd5 {[%clk 0:01:21]} 20. Qd3 {[%clk 0:01:49]}  b5 {[%clk 0:01:21]} 21. Ncd2 {[%clk 0:01:43]}  a6 {[%clk 0:01:20]} 22. Ne4 {[%clk 0:01:42]}  f6 {[%clk 0:01:16]} 23. Bg3 {[%clk 0:01:40]}  Qd7 {[%clk 0:01:16]} 24. b4 {[%clk 0:01:33]}  Nxb4 {[%clk 0:01:14]} 25. Qe3 {[%clk 0:01:26]}  Nd5 {[%clk 0:01:13]} 26. Qd2 {[%clk 0:01:24]}  b4 {[%clk 0:01:13]} 27. h4 {[%clk 0:01:22]}  a5 {[%clk 0:01:13]} 28. h5 {[%clk 0:01:23]}  a4 {[%clk 0:01:10]} 29. h6 {[%clk 0:01:22]}  g6 {[%clk 0:01:11]} 30. Ne1 {[%clk 0:01:19]}  Nc3 {[%clk 0:01:11]} 31. Ra1 {[%clk 0:01:14]}  Nxe4 {[%clk 0:01:10]} 32. Qe3 {[%clk 0:01:12]}  Nxg3 {[%clk 0:01:10]} 0-1


[Site "https://www.chess.com"]

[Event "Titled Tuesday Blitz October 31 Early 2023"]
[White "Kuchava, Ana"]
[Black "Panda Sambit"]
[WhiteFideId "13605348"]
[BlackFideId "25091794"]
[WhiteElo "2235"]
[BlackElo "2503"]
[Result "1/2-1/2"]
[Round "2"]
[TimeControl "180+1"]
[Date "2023.10.31"]
[WhiteClock "0:00:10"]
[BlackClock "0:01:20"]
[Board "161"]

1. d4 {[%clk 0:03:00]}  d5 {[%clk 0:02:57]} 2. Nf3 {[%clk 0:03:00]}  e6 {[%clk 0:02:57]} 3. c4 {[%clk 0:03:00]}  a6 {[%clk 0:02:54]} 4. e3 {[%clk 0:02:55]}  Nf6 {[%clk 0:02:48]} 5. Nc3 {[%clk 0:02:55]}  Nbd7 {[%clk 0:02:46]} 6. Bd3 {[%clk 0:02:54]}  dxc4 {[%clk 0:02:45]} 7. Bxc4 {[%clk 0:02:55]}  b5 {[%clk 0:02:46]} 8. Bd3 {[%clk 0:02:54]}  c5 {[%clk 0:02:47]} 9. O-O {[%clk 0:02:47]}  Bb7 {[%clk 0:02:46]} 10. Qe2 {[%clk 0:02:43]}  Be7 {[%clk 0:02:42]} 11. Rd1 {[%clk 0:02:38]}  Qb6 {[%clk 0:02:38]} 12. a3 {[%clk 0:02:10]}  O-O {[%clk 0:02:35]} 13. Bd2 {[%clk 0:01:57]}  Bxf3 {[%clk 0:02:25]} 14. Qxf3 {[%clk 0:01:55]}  cxd4 {[%clk 0:02:26]} 15. exd4 {[%clk 0:01:56]}  Qxd4 {[%clk 0:02:26]} 16. Be3 {[%clk 0:01:48]}  Qh4 {[%clk 0:02:26]} 17. Rac1 {[%clk 0:01:34]}  Ne5 {[%clk 0:02:24]} 18. Qe2 {[%clk 0:01:32]}  Nxd3 {[%clk 0:02:16]} 19. Rxd3 {[%clk 0:01:33]}  Rac8 {[%clk 0:02:16]} 20. Rcd1 {[%clk 0:01:26]}  Ng4 {[%clk 0:02:16]} 21. h3 {[%clk 0:01:20]}  Nxe3 {[%clk 0:02:14]} 22. Qxe3 {[%clk 0:01:15]}  Bc5 {[%clk 0:02:14]} 23. Qf3 {[%clk 0:01:02]}  h6 {[%clk 0:02:06]} 24. Ne4 {[%clk 0:00:59]}  e5 {[%clk 0:01:58]} 25. Rd7 {[%clk 0:00:52]}  Bd4 {[%clk 0:01:57]} 26. Kh2 {[%clk 0:00:45]}  Rcd8 {[%clk 0:01:54]} 27. g3 {[%clk 0:00:44]}  Qxe4 {[%clk 0:01:47]} 28. Qxe4 {[%clk 0:00:42]}  Rxd7 {[%clk 0:01:48]} 29. Kg2 {[%clk 0:00:34]}  Rc8 {[%clk 0:01:47]} 30. Rd2 {[%clk 0:00:32]}  g6 {[%clk 0:01:45]} 31. Rc2 {[%clk 0:00:30]}  Rdc7 {[%clk 0:01:41]} 32. Rxc7 {[%clk 0:00:29]}  Rxc7 {[%clk 0:01:42]} 33. Qa8+ {[%clk 0:00:29]}  Kg7 {[%clk 0:01:42]} 34. Qxa6 {[%clk 0:00:27]}  Rc2 {[%clk 0:01:42]} 35. Qxb5 {[%clk 0:00:23]}  Rxf2+ {[%clk 0:01:39]} 36. Kh1 {[%clk 0:00:23]}  Rxb2 {[%clk 0:01:39]} 37. Qc4 {[%clk 0:00:21]}  Rb1+ {[%clk 0:01:37]} 38. Kg2 {[%clk 0:00:20]}  Rb2+ {[%clk 0:01:37]} 39. Kh1 {[%clk 0:00:18]}  Rb1+ {[%clk 0:01:33]} 40. Kg2 {[%clk 0:00:18]}  Rg1+ {[%clk 0:01:33]} 41. Kf3 {[%clk 0:00:17]}  Ra1 {[%clk 0:01:33]} 42. a4 {[%clk 0:00:16]}  Ra3+ {[%clk 0:01:34]} 43. Kg2 {[%clk 0:00:16]}  g5 {[%clk 0:01:33]} 44. Qb4 {[%clk 0:00:15]}  Ra2+ {[%clk 0:01:33]} 45. Kf3 {[%clk 0:00:15]}  Rf2+ {[%clk 0:01:32]} 46. Ke4 {[%clk 0:00:15]}  Re2+ {[%clk 0:01:29]} 47. Kf3 {[%clk 0:00:14]}  Rf2+ {[%clk 0:01:26]} 48. Ke4 {[%clk 0:00:14]}  f5+ {[%clk 0:01:27]} 49. Kd5 {[%clk 0:00:14]}  f4 {[%clk 0:01:26]} 50. Qe7+ {[%clk 0:00:14]}  Kg6 {[%clk 0:01:23]} 51. Ke6 {[%clk 0:00:12]}  fxg3 {[%clk 0:01:18]} 52. Qe8+ {[%clk 0:00:10]}  Kg7 {[%clk 0:01:19]} 53. Qe7+ {[%clk 0:00:10]}  Kg6 {[%clk 0:01:19]} 54. Qe8+ {[%clk 0:00:10]}  Kh7 {[%clk 0:01:19]} 55. Qe7+ {[%clk 0:00:10]}  Kg8 {[%clk 0:01:20]} 56. Qe8+ {[%clk 0:00:10]}  Kg7 {[%clk 0:01:20]} 57. Qe7+ {[%clk 0:00:10]}  Kg6 {[%clk 0:01:20]} 1/2-1/2


[Site "https://www.chess.com"]

[Event "Titled Tuesday Blitz October 31 Early 2023"]
[White "Kalogeris, Ioannis"]
[Black "Limontaite, Simona"]
[WhiteFideId "4239563"]
[BlackFideId "12802506"]
[WhiteElo "2495"]
[BlackElo "2232"]
[Result "1-0"]
[Round "2"]
[TimeControl "180+1"]
[Date "2023.10.31"]
[WhiteClock "0:00:25"]
[BlackClock "0:00:00"]
[Board "162"]

1. e4 {[%clk 0:03:00]}  d6 {[%clk 0:02:59]} 2. d4 {[%clk 0:02:57]}  Nf6 {[%clk 0:03:00]} 3. Nc3 {[%clk 0:02:57]}  c6 {[%clk 0:03:00]} 4. Nf3 {[%clk 0:02:57]}  Qa5 {[%clk 0:03:00]} 5. Bd3 {[%clk 0:02:56]}  Bg4 {[%clk 0:03:00]} 6. h3 {[%clk 0:02:55]}  Bh5 {[%clk 0:03:00]} 7. Bd2 {[%clk 0:02:52]}  Qc7 {[%clk 0:02:57]} 8. Qe2 {[%clk 0:02:51]}  e6 {[%clk 0:02:57]} 9. O-O-O {[%clk 0:02:37]}  Be7 {[%clk 0:02:57]} 10. e5 {[%clk 0:02:33]}  Nd5 {[%clk 0:02:55]} 11. Ne4 {[%clk 0:02:29]}  dxe5 {[%clk 0:02:40]} 12. dxe5 {[%clk 0:02:19]}  Nd7 {[%clk 0:02:36]} 13. g4 {[%clk 0:02:11]}  Bg6 {[%clk 0:02:35]} 14. c4 {[%clk 0:02:04]}  Nb4 {[%clk 0:02:32]} 15. Nd6+ {[%clk 0:01:39]}  Bxd6 {[%clk 0:02:30]} 16. Bxg6 {[%clk 0:01:38]}  Be7 {[%clk 0:01:46]} 17. Bb1 {[%clk 0:01:15]}  O-O-O {[%clk 0:01:38]} 18. a3 {[%clk 0:01:15]}  Na6 {[%clk 0:01:38]} 19. b4 {[%clk 0:01:16]}  Rhe8 {[%clk 0:01:08]} 20. Bc3 {[%clk 0:01:13]}  h6 {[%clk 0:01:03]} 21. Rd3 {[%clk 0:01:08]}  Nb6 {[%clk 0:01:01]} 22. Rhd1 {[%clk 0:01:04]}  Rxd3 {[%clk 0:01:01]} 23. Bxd3 {[%clk 0:00:57]}  Rd8 {[%clk 0:00:40]} 24. Bc2 {[%clk 0:00:55]}  Rxd1+ {[%clk 0:00:38]} 25. Bxd1 {[%clk 0:00:55]}  Qd8 {[%clk 0:00:34]} 26. Bc2 {[%clk 0:00:55]}  Nc7 {[%clk 0:00:26]} 27. Kb2 {[%clk 0:00:54]}  Kb8 {[%clk 0:00:17]} 28. a4 {[%clk 0:00:53]}  Nc8 {[%clk 0:00:11]} 29. a5 {[%clk 0:00:52]}  Ne8 {[%clk 0:00:07]} 30. Bh7 {[%clk 0:00:51]}  Nc7 {[%clk 0:00:05]} 31. Qd3 {[%clk 0:00:49]}  Qf8 {[%clk 0:00:05]} 32. Kb3 {[%clk 0:00:46]}  Na6 {[%clk 0:00:06]} 33. Qd2 {[%clk 0:00:46]}  Nc7 {[%clk 0:00:03]} 34. Be4 {[%clk 0:00:44]}  Qe8 {[%clk 0:00:03]} 35. Ne1 {[%clk 0:00:37]}  Bf8 {[%clk 0:00:03]} 36. f4 {[%clk 0:00:36]}  Ne7 {[%clk 0:00:01]} 37. Nc2 {[%clk 0:00:37]}  Nc8 {[%clk 0:00:01]} 38. Na3 {[%clk 0:00:32]}  Be7 {[%clk 0:00:02]} 39. Nc2 {[%clk 0:00:25]}  Na6 {[%clk 0:00:02]} 40. Qf2 {[%clk 0:00:25]}  Nc7 {[%clk 0:00:00]} 41. f5 {[%clk 0:00:25]} 1-0


[Site "https://www.chess.com"]

[Event "Titled Tuesday Blitz October 31 Early 2023"]
[White "Topalov, Aleksandar"]
[Black "Shapiro, Viktor"]
[WhiteFideId "925659"]
[BlackFideId "4175700"]
[WhiteElo "2228"]
[BlackElo "2494"]
[Result "1/2-1/2"]
[Round "2"]
[TimeControl "180+1"]
[Date "2023.10.31"]
[WhiteClock "0:00:04"]
[BlackClock "0:00:17"]
[Board "163"]

1. b3 {[%clk 0:03:00]}  Nf6 {[%clk 0:02:59]} 2. Bb2 {[%clk 0:03:00]}  d5 {[%clk 0:03:00]} 3. Nf3 {[%clk 0:03:00]}  Bf5 {[%clk 0:03:00]} 4. g3 {[%clk 0:02:59]}  e6 {[%clk 0:03:01]} 5. Bg2 {[%clk 0:02:59]}  Bd6 {[%clk 0:03:01]} 6. O-O {[%clk 0:02:59]}  h6 {[%clk 0:03:01]} 7. d3 {[%clk 0:02:59]}  O-O {[%clk 0:03:01]} 8. Nbd2 {[%clk 0:02:59]}  Bh7 {[%clk 0:03:01]} 9. e3 {[%clk 0:02:52]}  c5 {[%clk 0:03:00]} 10. Ne5 {[%clk 0:02:50]}  Qc7 {[%clk 0:03:00]} 11. f4 {[%clk 0:02:49]}  Nbd7 {[%clk 0:02:58]} 12. Nxd7 {[%clk 0:02:46]}  Nxd7 {[%clk 0:02:58]} 13. e4 {[%clk 0:02:45]}  d4 {[%clk 0:02:55]} 14. a4 {[%clk 0:02:44]}  e5 {[%clk 0:02:46]} 15. f5 {[%clk 0:02:33]}  Be7 {[%clk 0:02:45]} 16. Nc4 {[%clk 0:02:33]}  b6 {[%clk 0:02:44]} 17. Bc1 {[%clk 0:02:32]}  Bf6 {[%clk 0:02:44]} 18. Qh5 {[%clk 0:02:25]}  a6 {[%clk 0:02:35]} 19. g4 {[%clk 0:02:19]}  Qd8 {[%clk 0:02:33]} 20. Bd2 {[%clk 0:02:04]}  Qe7 {[%clk 0:02:33]} 21. Be1 {[%clk 0:01:55]}  b5 {[%clk 0:02:32]} 22. Nb2 {[%clk 0:01:52]}  Bg5 {[%clk 0:02:25]} 23. Bg3 {[%clk 0:01:26]}  Rfc8 {[%clk 0:02:05]} 24. Kh1 {[%clk 0:01:21]}  Rab8 {[%clk 0:01:54]} 25. axb5 {[%clk 0:01:14]}  axb5 {[%clk 0:01:54]} 26. Ra6 {[%clk 0:01:08]}  Ra8 {[%clk 0:01:50]} 27. Rfa1 {[%clk 0:01:08]}  Rxa6 {[%clk 0:01:49]} 28. Rxa6 {[%clk 0:01:08]}  Nf6 {[%clk 0:01:46]} 29. Qh3 {[%clk 0:01:03]}  Bc1 {[%clk 0:01:46]} 30. Nd1 {[%clk 0:00:58]}  c4 {[%clk 0:01:45]} 31. bxc4 {[%clk 0:00:58]}  bxc4 {[%clk 0:01:46]} 32. Bh4 {[%clk 0:00:54]}  cxd3 {[%clk 0:01:38]} 33. cxd3 {[%clk 0:00:54]}  Bg5 {[%clk 0:01:37]} 34. Bxg5 {[%clk 0:00:46]}  hxg5 {[%clk 0:01:37]} 35. Bf3 {[%clk 0:00:46]}  Qb7 {[%clk 0:01:33]} 36. Ra1 {[%clk 0:00:41]}  Qb3 {[%clk 0:01:31]} 37. Qf1 {[%clk 0:00:40]}  g6 {[%clk 0:01:29]} 38. Qe2 {[%clk 0:00:32]}  Rc2 {[%clk 0:01:26]} 39. Qe1 {[%clk 0:00:28]}  gxf5 {[%clk 0:01:24]} 40. exf5 {[%clk 0:00:27]}  Qb5 {[%clk 0:01:15]} 41. Ra3 {[%clk 0:00:18]}  Kg7 {[%clk 0:01:13]} 42. h4 {[%clk 0:00:17]}  gxh4 {[%clk 0:01:09]} 43. Qxh4 {[%clk 0:00:16]}  e4 {[%clk 0:00:52]} 44. Qg5+ {[%clk 0:00:16]}  Kf8 {[%clk 0:00:52]} 45. Qxf6 {[%clk 0:00:16]}  Rc8 {[%clk 0:00:33]} 46. Ra7 {[%clk 0:00:15]}  Bg8 {[%clk 0:00:29]} 47. Qh6+ {[%clk 0:00:14]}  Ke8 {[%clk 0:00:29]} 48. Qd6 {[%clk 0:00:13]}  Qc5 {[%clk 0:00:27]} 49. Re7+ {[%clk 0:00:12]}  Kf8 {[%clk 0:00:27]} 50. Qxc5 {[%clk 0:00:08]}  Rxc5 {[%clk 0:00:27]} 51. Rxe4 {[%clk 0:00:08]}  Rc1 {[%clk 0:00:26]} 52. Rxd4 {[%clk 0:00:08]}  f6 {[%clk 0:00:27]} 53. Kg2 {[%clk 0:00:07]}  Bb3 {[%clk 0:00:25]} 54. Ne3 {[%clk 0:00:06]}  Kg7 {[%clk 0:00:24]} 55. Kg3 {[%clk 0:00:06]}  Re1 {[%clk 0:00:23]} 56. Kf4 {[%clk 0:00:06]}  Kh6 {[%clk 0:00:21]} 57. Rd6 {[%clk 0:00:05]}  Kg7 {[%clk 0:00:21]} 58. Rd7+ {[%clk 0:00:04]}  Kh6 {[%clk 0:00:21]} 59. Rd6 {[%clk 0:00:05]}  Kg7 {[%clk 0:00:21]} 60. Nc4 {[%clk 0:00:05]}  Rf1 {[%clk 0:00:18]} 61. Ne3 {[%clk 0:00:04]}  Re1 {[%clk 0:00:17]} 1/2-1/2


[Site "https://www.chess.com"]